fUST/lending_fUST_20240715
["ID","MTS","AMOUNT","RATE_DAILY","PERIOD"]
[332125227,1720975846702,-500.0,0.00025479,2]
[332125229,1720975846711,-500.0,0.00025479,2]
[332125231,1720975846722,-671.26,0.00025479,2]
[332125233,1720975846732,-500.0,0.00025479,2]
[332125235,1720975846744,-535.06,0.00025479,2]
[332125237,1720975846753,-500.0,0.00025479,2]
[332125239,1720975846763,-500.0,0.00025479,2]
[332125241,1720975846772,-500.0,0.00025479,2]
[332125243,1720975846781,-500.0,0.00025479,2]
[332125245,1720975846790,-500.0,0.00025479,2]
[332125247,1720975846799,-1500.0,0.00025479,2]
[332125249,1720975846813,-600.79,0.00025479,2]
[332125251,1720975846822,-500.0,0.00025479,2]
[332125253,1720975846831,-500.0,0.00025479,2]
[332125255,1720975846840,-895.71,0.00025479,2]
[332125257,1720975846850,-500.0,0.00025479,2]
[332125259,1720975846859,-3926.77,0.00025479,2]
[332125261,1720975846868,-760.76,0.00025479,2]
[332125262,1720975846878,-500.0,0.00025479,2]
[332125264,1720975846887,-500.0,0.00025479,2]
[332125266,1720975846896,-438.89205234,0.00025479,2]
[332125268,1720975846905,-610.82,0.00025479,2]
[332125270,1720975846914,-595.39,0.00025479,2]
[332125272,1720975846923,-500.0,0.00025479,2]
[332125274,1720975846933,-500.0,0.00025479,2]
[332125276,1720975846943,-982.17,0.00025479,2]
[332125278,1720975846952,-500.0,0.00025479,2]
[332125280,1720975846961,-500.0,0.00025479,2]
[332125282,1720975846970,-500.0,0.00025479,2]
[332125284,1720975846980,-500.0,0.00025479,2]
[332125286,1720975846990,-500.0,0.00025479,2]
[332125288,1720975847000,-500.0,0.00025479,2]
[332125290,1720975847010,-500.0,0.00025479,2]
[332125292,1720975847021,-8023.06,0.00025479,2]
[332125294,1720975847032,-500.0,0.00025479,2]
[332125297,1720975847043,-1302.4,0.00025479,2]
[332125299,1720975847053,-500.0,0.00025479,2]
[332125301,1720975847063,-195.77,0.00025479,2]
[332125303,1720975847072,-508.41,0.00025479,2]
[332125305,1720975847081,-14561.1019771,0.0002549,3]
[332125307,1720975847091,-14561.1019771,0.00025491,3]
[332125309,1720975847103,-2573.31522697,0.000255,5]
[332125311,1720975847112,-37472.66304746,0.000255,2]
[332125345,1720975847428,-500.0,0.00024657,2]
[332125348,1720975847439,-500.0,0.00024657,2]
[332125350,1720975847448,-500.0,0.00024657,2]
[332125352,1720975847458,-500.0,0.00024931,2]
[332125354,1720975847467,-136.39217822,0.000255,2]
[332125356,1720975847479,-3394.1237851,0.000255,2]
[332125388,1720975847788,-14393.90842435,0.000255,2]
[332125396,1720975847857,-487.04417224,0.00024657,2]
[332125398,1720975847867,-500.0,0.00024657,2]
[332125400,1720975847877,-411.53167875,0.000255,2]
[332125403,1720975847889,-473.81295627,0.000255,2]
[332125405,1720975847902,-2199.30636809,0.000255,2]
[332125770,1720976069611,814.48655759,0.00014999,2]
[332125774,1720976774132,377.04480005,0.00016255,2]
[332125776,1720976808572,287.67977048,0.00016255,2]
[332125777,1720976828130,-165.25732412,0.00019703,2]
[332125778,1720976828152,-84.74267588,0.00020995,2]
[332125779,1720976837099,-447.58228251,0.00018,2]
[332125780,1720976837120,-161.82432499,0.00020995,2]
[332125781,1720976837144,-371.13820499,0.00021096,2]
[332125782,1720976846099,-191.30476359,0.00021095,2]
[332125783,1720976846121,-378.86179501,0.00021096,2]
[332125784,1720976846141,-380.9300653,0.00021979,2]
[332125792,1720976974097,-158.534686,0.00018899,2]
[332125793,1720976974128,-118.35326757,0.00018899,2]
[332125794,1720976974151,-80.52212749,0.00019879,2]
[332125813,1720977031991,-69.47787251,0.00019879,2]
[332125815,1720977032001,-287.16282876,0.00019879,2]
[332125817,1720977032010,-160.660602,0.00020902,2]
[332125819,1720977032020,-134.92820985,0.00020908,2]
[332125821,1720977032032,-2797.26279755,0.00020908,2]
[332125823,1720977032042,-612.68339594,0.00021095,2]
[332125825,1720977032051,-220.222905,0.00021096,2]
[332125827,1720977032061,-250.0,0.00021109,2]
[332125828,1720977032071,-250.0,0.00021963,2]
[332125830,1720977032081,-124.96888256,0.00021978,2]
[332125858,1720977038059,-175.03111744,0.00021978,2]
[332125859,1720977038069,-2112.11484212,0.00021979,2]
[332125860,1720977038081,-4761.00665873,0.00021979,2]
[332125861,1720977038090,-3822.73499725,0.00021979,2]
[332125862,1720977038099,-611.4004455,0.00021979,2]
[332125863,1720977038109,-597.1045912,0.00022049,2]
[332125864,1720977038118,-158.534687,0.00022199,2]
[332125865,1720977038127,-7540.27971042,0.00022416,2]
[332125866,1720977038143,-8407.52255818,0.00022416,2]
[332125867,1720977038152,-276.956922,0.00023057,2]
[332125868,1720977038161,-158.534687,0.00023356,2]
[332125869,1720977038171,-166.313093,0.00023583,2]
[332125870,1720977038181,-950.44599873,0.00023966,2]
[332125871,1720977038190,-8093.9131063,0.00024,2]
[332125872,1720977038199,-150.112233,0.00024,3]
[332125873,1720977038208,-1000.0,0.00024,24]
[332125874,1720977038217,-420.0,0.00024176,2]
[332125875,1720977038226,-150.112233,0.000244,2]
[332125876,1720977038235,-1041.74066378,0.00024457,2]
[332125877,1720977038244,-833.64808087,0.00024481,2]
[332125878,1720977038253,-1736.3940014,0.00024557,2]
[332125879,1720977038263,-500.0,0.00024646,2]
[332125880,1720977038272,-295.33124392,0.00024646,2]
[332125881,1720977038281,-500.0,0.00024646,2]
[332125882,1720977038290,-207.34158371,0.00024646,2]
[332125883,1720977038299,-500.0,0.00024646,2]
[332125884,1720977038308,-297.0197809,0.00024646,2]
[332125885,1720977038318,-500.0,0.00024646,2]
[332125886,1720977038327,-50393.2471329,0.00024647,3]
[332125887,1720977038336,-502.39202574,0.00024657,2]
[332125888,1720977038345,-500.0,0.00024657,2]
[332125889,1720977038355,-500.0,0.00024657,2]
[332125890,1720977038365,-500.0,0.00024657,2]
[332125891,1720977038374,-500.0,0.00024657,2]
[332125892,1720977038384,-500.0,0.00024657,2]
[332125893,1720977038393,-509.73621863,0.00024657,2]
[332125894,1720977038403,-500.0,0.00024657,2]
[332125895,1720977038412,-500.0,0.00024657,2]
[332125896,1720977038423,-500.0,0.00024657,2]
[332125897,1720977038432,-500.0,0.00024657,2]
[332125898,1720977038442,-500.0,0.00024657,2]
[332125899,1720977038451,-500.0,0.00024657,2]
[332125900,1720977038461,-500.0,0.00024657,2]
[332125901,1720977038470,-500.0,0.00024657,2]
[332125902,1720977038480,-500.0,0.00024657,2]
[332125903,1720977038489,-500.0,0.00024657,2]
[332125904,1720977038499,-516.4731646,0.00024657,2]
[332125905,1720977038508,-500.0,0.00024657,2]
[332125906,1720977038518,-500.0,0.00024657,2]
[332125907,1720977038527,-513.79628168,0.00024657,2]
[332125908,1720977038537,-500.0,0.00024657,2]
[332125909,1720977038547,-500.0,0.00024657,2]
[332125910,1720977038558,-500.0,0.00024657,2]
[332125911,1720977038568,-500.0,0.00024657,2]
[332125912,1720977038578,-500.0,0.00024657,2]
[332125913,1720977038588,-500.0,0.00024657,2]
[332125914,1720977038598,-500.0,0.00024657,2]
[332125915,1720977038607,-500.0,0.00024657,2]
[332125916,1720977038617,-500.0,0.00024657,2]
[332125917,1720977038626,-450.14769777,0.00024657,2]
[332125918,1720977038636,-319.48814599,0.00024657,2]
[332125919,1720977038646,-500.0,0.00024657,2]
[332125920,1720977038655,-500.0,0.00024657,2]
[332125921,1720977038666,-500.0,0.00024657,2]
[332125922,1720977038675,-500.0,0.00024657,2]
[332125923,1720977038685,-500.0,0.00024657,2]
[332125924,1720977038788,-500.0,0.00024657,2]
[332125925,1720977038799,-500.0,0.00024657,2]
[332125926,1720977038810,-500.0,0.00024657,2]
[332125927,1720977038819,-505.13763152,0.00024657,2]
[332125928,1720977038829,-500.0,0.00024657,2]
[332125929,1720977038839,-500.0,0.00024657,2]
[332125930,1720977038849,-504.62117378,0.00024657,2]
[332125931,1720977038858,-500.0,0.00024657,2]
[332125932,1720977038867,-500.0,0.00024657,2]
[332125933,1720977038878,-500.3066454,0.00024657,2]
[332125934,1720977038892,-500.0,0.00024657,2]
[332125935,1720977038902,-287.558,0.00024657,2]
[332125936,1720977038911,-506.5496359,0.00024657,2]
[332125937,1720977038923,-500.0,0.00024657,2]
[332125938,1720977038932,-500.0,0.00024657,2]
[332125939,1720977038942,-500.0,0.00024657,2]
[332125940,1720977038954,-500.0,0.00024657,2]
[332125941,1720977038967,-500.0,0.00024657,2]
[332125942,1720977038979,-500.0,0.00024657,2]
[332125943,1720977038989,-1500.0,0.00024657,2]
[332125944,1720977038999,-542.33,0.00024657,2]
[332125945,1720977039008,-500.0,0.00024657,2]
[332125946,1720977039019,-500.0,0.00024657,2]
[332125947,1720977039029,-500.0,0.00024657,2]
[332125948,1720977039040,-500.0,0.00024657,2]
[332125949,1720977039050,-500.0,0.00024657,2]
[332125950,1720977039060,-500.0,0.00024657,2]
[332125951,1720977039070,-500.0,0.00024657,2]
[332125952,1720977039079,-500.0,0.00024657,2]
[332125953,1720977039090,-500.0,0.00024657,2]
[332125954,1720977039100,-500.0,0.00024657,2]
[332125955,1720977039111,-500.0,0.00024657,2]
[332125956,1720977039122,-500.0,0.00024657,2]
[332125957,1720977039132,-511.07082902,0.00024657,2]
[332125958,1720977039142,-500.0,0.00024657,2]
[332125959,1720977039151,-500.0,0.00024657,2]
[332125960,1720977039161,-581.23649948,0.00024657,2]
[332125961,1720977039172,-500.0,0.00024657,2]
[332125962,1720977039182,-160.90982571,0.00024657,2]
[332125963,1720977039191,-500.0,0.00024657,2]
[332125964,1720977039200,-500.0,0.00024657,2]
[332125965,1720977039210,-500.0,0.00024657,2]
[332125966,1720977039219,-536.75135231,0.00024657,2]
[332125967,1720977039228,-500.0,0.00024657,2]
[332125968,1720977039238,-500.0,0.00024657,2]
[332125969,1720977039247,-189.64627636,0.00024657,2]
[332125970,1720977039256,-500.0,0.00024657,2]
[332125971,1720977039266,-500.0,0.00024657,2]
[332125972,1720977039276,-500.0,0.00024657,2]
[332125973,1720977039285,-517.55120939,0.00024657,2]
[332125974,1720977039295,-500.0,0.00024657,2]
[332125975,1720977039304,-500.0,0.00024657,2]
[332125976,1720977039313,-664.35,0.00024657,2]
[332125977,1720977039323,-500.0,0.00024657,2]
[332125978,1720977039334,-500.0,0.00024657,2]
[332125979,1720977039343,-500.0,0.00024657,2]
[332125980,1720977039352,-500.0,0.00024657,2]
[332125981,1720977039363,-500.0,0.00024657,2]
[332125982,1720977039373,-569.52372769,0.00024657,2]
[332125983,1720977039383,-500.0,0.00024657,2]
[332125984,1720977039393,-500.0,0.00024657,2]
[332125985,1720977039402,-500.0,0.00024657,2]
[332125986,1720977039412,-413.23901291,0.00024657,2]
[332125987,1720977039423,-500.0,0.00024657,2]
[332125988,1720977039432,-500.0,0.00024657,2]
[332125989,1720977039442,-500.0,0.00024657,2]
[332125991,1720977039452,-500.0,0.00024657,2]
[332125992,1720977039461,-500.0,0.00024657,2]
[332125993,1720977039471,-500.0,0.00024657,2]
[332125995,1720977039481,-500.0,0.00024657,2]
[332125996,1720977039490,-505.02961316,0.00024657,2]
[332125997,1720977039500,-500.0,0.00024657,2]
[332125998,1720977039510,-500.0,0.00024657,2]
[332125999,1720977039520,-500.0,0.00024657,2]
[332126000,1720977039531,-500.0,0.00024657,2]
[332126001,1720977039540,-500.0,0.00024657,2]
[332126002,1720977039550,-500.0,0.00024657,2]
[332126003,1720977039560,-500.0,0.00024657,2]
[332126005,1720977039569,-500.0,0.00024657,2]
[332126007,1720977039579,-500.0,0.00024657,2]
[332126008,1720977039589,-500.0,0.00024657,2]
[332126009,1720977039598,-500.0,0.00024657,2]
[332126010,1720977039608,-500.0,0.00024657,2]
[332126011,1720977039617,-500.0,0.00024657,2]
[332126012,1720977039626,-500.0,0.00024657,2]
[332126014,1720977039636,-500.0,0.00024657,2]
[332126015,1720977039645,-500.0,0.00024657,2]
[332126016,1720977039654,-500.0,0.00024657,2]
[332126017,1720977039664,-500.0,0.00024657,2]
[332126018,1720977039674,-500.0,0.00024657,2]
[332126019,1720977039684,-561.02961366,0.00024657,2]
[332126020,1720977039693,-500.0,0.00024657,2]
[332126021,1720977039703,-200.0,0.00024657,2]
[332126022,1720977039714,-500.0,0.00024657,2]
[332126023,1720977039726,-500.0,0.00024657,2]
[332126024,1720977039736,-500.0,0.00024657,2]
[332126026,1720977039745,-1000.43223506,0.00024657,5]
[332126028,1720977039757,-551.46,0.00024657,2]
[332126030,1720977039767,-500.0,0.00024657,2]
[332126032,1720977039776,-500.0,0.00024657,2]
[332126034,1720977039786,-514.88011761,0.00024657,2]
[332126037,1720977039800,-500.0,0.00024657,2]
[332126040,1720977039815,-500.0,0.00024657,2]
[332126042,1720977039828,-496.83962333,0.00024657,2]
[332126044,1720977039841,-500.0,0.00024657,2]
[332126047,1720977039853,-500.0,0.00024657,2]
[332126049,1720977039863,-500.0,0.00024657,2]
[332126051,1720977039875,-593.65268758,0.00024657,2]
[332126053,1720977039891,-500.0,0.00024657,2]
[332126055,1720977039902,-500.0,0.00024657,2]
[332126058,1720977039916,-500.0,0.00024657,2]
[332126060,1720977039929,-500.0,0.00024657,2]
[332126063,1720977039945,-200.0,0.00024657,7]
[332126065,1720977039961,-500.0,0.00024657,2]
[332126068,1720977039974,-340.77421299,0.00024657,2]
[332126070,1720977039988,-500.0,0.00024657,2]
[332126072,1720977040001,-500.0,0.00024657,2]
[332126075,1720977040014,-500.0,0.00024657,2]
[332126077,1720977040027,-500.0,0.00024657,2]
[332126079,1720977040038,-500.0,0.00024657,2]
[332126082,1720977040051,-518.26751006,0.00024657,2]
[332126084,1720977040063,-500.0,0.00024657,2]
[332126086,1720977040077,-500.0,0.00024657,2]
[332126089,1720977040090,-500.0,0.00024657,2]
[332126091,1720977040101,-500.0,0.00024657,2]
[332126093,1720977040114,-500.0,0.00024657,2]
[332126095,1720977040124,-538.09163889,0.00024657,2]
[332126097,1720977040134,-500.0,0.00024657,2]
[332126098,1720977040145,-500.0,0.00024657,2]
[332126100,1720977040157,-500.0,0.00024657,2]
[332126103,1720977040170,-500.0,0.00024657,2]
[332126105,1720977040182,-500.0,0.00024657,2]
[332126107,1720977040195,-500.0,0.00024657,2]
[332126109,1720977040206,-500.0,0.00024657,2]
[332126111,1720977040217,-500.0,0.00024657,2]
[332126114,1720977040229,-500.0,0.00024657,2]
[332126116,1720977040239,-500.0,0.00024657,2]
[332126118,1720977040251,-500.0,0.00024657,2]
[332126120,1720977040264,-500.0,0.00024657,2]
[332126123,1720977040276,-500.0,0.00024657,2]
[332126125,1720977040289,-500.0,0.00024657,2]
[332126127,1720977040302,-500.0,0.00024657,2]
[332126130,1720977040313,-500.0,0.00024657,2]
[332126132,1720977040324,-500.0,0.00024657,2]
[332126134,1720977040335,-500.0,0.00024657,2]
[332126136,1720977040347,-500.0,0.00024657,2]
[332126138,1720977040358,-545.44055427,0.00024657,2]
[332126141,1720977040369,-500.0,0.00024657,2]
[332126142,1720977040381,-500.0,0.00024657,2]
[332126144,1720977040393,-595.15,0.00024657,2]
[332126146,1720977040405,-561.29,0.00024657,2]
[332126149,1720977040418,-500.0,0.00024657,2]
[332126151,1720977040428,-631.67216182,0.00024657,2]
[332126153,1720977040440,-500.0,0.00024657,2]
[332126155,1720977040454,-500.0,0.00024657,2]
[332126157,1720977040464,-500.0,0.00024657,2]
[332126159,1720977040476,-500.0,0.00024657,2]
[332126161,1720977040488,-500.0,0.00024657,2]
[332126164,1720977040498,-500.0,0.00024657,2]
[332126166,1720977040508,-500.0,0.00024657,2]
[332126168,1720977040518,-500.0,0.00024657,2]
[332126170,1720977040528,-500.0,0.00024657,2]
[332126172,1720977040539,-500.0,0.00024657,2]
[332126174,1720977040550,-613.84,0.00024657,2]
[332126176,1720977040560,-500.0,0.00024657,2]
[332126178,1720977040571,-500.0,0.00024657,2]
[332126181,1720977040583,-500.0,0.00024657,2]
[332126183,1720977040594,-500.0,0.00024657,2]
[332126185,1720977040607,-500.0,0.00024657,2]
[332126188,1720977040620,-500.0,0.00024657,2]
[332126190,1720977040631,-500.0,0.00024657,2]
[332126193,1720977040644,-500.0,0.00024657,2]
[332126195,1720977040657,-500.0,0.00024657,2]
[332126197,1720977040668,-500.0,0.00024657,2]
[332126199,1720977040680,-500.0,0.00024657,2]
[332126202,1720977040691,-500.0,0.00024657,2]
[332126204,1720977040702,-500.0,0.00024657,2]
[332126206,1720977040712,-500.0,0.00024657,2]
[332126208,1720977040723,-500.0,0.00024657,2]
[332126210,1720977040734,-500.0,0.00024657,2]
[332126212,1720977040744,-3272.31,0.00024657,2]
[332126215,1720977040755,-859.39,0.00024657,2]
[332126217,1720977040766,-500.0,0.00024657,2]
[332126219,1720977040776,-505.10332189,0.00024657,2]
[332126221,1720977040787,-500.0,0.00024657,2]
[332126223,1720977040799,-500.0,0.00024657,2]
[332126225,1720977040809,-500.0,0.00024657,2]
[332126228,1720977040820,-500.0,0.00024657,2]
[332126230,1720977040832,-500.0,0.00024657,2]
[332126232,1720977040844,-523.03485607,0.00024657,2]
[332126233,1720977040855,-507.93933676,0.00024657,2]
[332126235,1720977040866,-500.0,0.00024657,2]
[332126237,1720977040878,-500.0,0.00024657,2]
[332126240,1720977040895,-507.62364398,0.00024657,2]
[332126242,1720977040905,-500.0,0.00024657,2]
[332126244,1720977040915,-220.0533065,0.00024657,2]
[332126246,1720977040927,-500.0,0.00024657,2]
[332126248,1720977040940,-500.0,0.00024657,2]
[332126251,1720977040953,-500.0,0.00024657,2]
[332126253,1720977040967,-500.0,0.00024657,2]
[332126254,1720977040978,-561.98,0.00024657,2]
[332126255,1720977040989,-500.0,0.00024657,2]
[332126256,1720977041000,-500.0,0.00024657,2]
[332126257,1720977041011,-632.98,0.00024657,2]
[332126258,1720977041025,-500.0,0.00024657,2]
[332126259,1720977041145,-500.0,0.00024657,2]
[332126260,1720977041157,-500.0,0.00024657,2]
[332126261,1720977041167,-508.91320766,0.00024657,2]
[332126262,1720977041177,-500.0,0.00024657,2]
[332126263,1720977041186,-500.0,0.00024657,2]
[332126264,1720977041196,-540.05567798,0.00024657,2]
[332126265,1720977041205,-500.0,0.00024657,2]
[332126266,1720977041214,-500.0,0.00024657,2]
[332126267,1720977041224,-500.0,0.00024657,2]
[332126268,1720977041233,-500.0,0.00024657,2]
[332126269,1720977041242,-500.0,0.00024657,2]
[332126270,1720977041252,-500.0,0.00024657,2]
[332126271,1720977041262,-500.0,0.00024657,2]
[332126272,1720977041271,-500.0,0.00024657,2]
[332126273,1720977041280,-500.0,0.00024657,2]
[332126274,1720977041290,-500.0,0.00024657,2]
[332126275,1720977041299,-570.92246406,0.00024657,2]
[332126276,1720977041308,-500.0,0.00024657,2]
[332126277,1720977041317,-505.09029072,0.00024657,2]
[332126278,1720977041327,-500.0,0.00024657,2]
[332126279,1720977041337,-500.0,0.00024657,2]
[332126280,1720977041347,-500.0,0.00024657,2]
[332126281,1720977041356,-509.34027352,0.00024657,2]
[332126282,1720977041366,-500.0,0.00024657,2]
[332126283,1720977041376,-500.0,0.00024657,2]
[332126284,1720977041385,-500.0,0.00024657,2]
[332126285,1720977041395,-500.0,0.00024657,2]
[332126286,1720977041404,-500.0,0.00024657,2]
[332126287,1720977041413,-500.0,0.00024657,2]
[332126288,1720977041423,-7020.18,0.00024657,2]
[332126289,1720977041433,-500.0,0.00024657,2]
[332126290,1720977041442,-500.0,0.00024657,2]
[332126291,1720977041451,-500.0,0.00024657,2]
[332126292,1720977041460,-500.0,0.00024657,2]
[332126293,1720977041470,-500.0,0.00024657,2]
[332126294,1720977041479,-500.0,0.00024657,2]
[332126295,1720977041489,-500.0,0.00024657,2]
[332126296,1720977041498,-500.0,0.00024657,2]
[332126297,1720977041507,-500.0,0.00024657,2]
[332126298,1720977041516,-500.0,0.00024657,2]
[332126299,1720977041526,-500.0,0.00024657,2]
[332126300,1720977041536,-500.0,0.00024657,2]
[332126301,1720977041545,-500.0,0.00024657,2]
[332126302,1720977041555,-209.1071623,0.00024657,2]
[332126303,1720977041564,-500.0,0.00024657,2]
[332126304,1720977041575,-500.0,0.00024657,2]
[332126305,1720977041587,-500.0,0.00024657,2]
[332126306,1720977041597,-500.0,0.00024657,2]
[332126307,1720977041606,-500.0,0.00024657,2]
[332126308,1720977041616,-500.0,0.00024657,2]
[332126309,1720977041625,-500.0,0.00024657,2]
[332126310,1720977041636,-500.0,0.00024657,2]
[332126311,1720977041647,-500.0,0.00024657,2]
[332126312,1720977041658,-500.0,0.00024657,2]
[332126313,1720977041668,-1139.6,0.00024657,2]
[332126314,1720977041677,-500.0,0.00024657,4]
[332126315,1720977041686,-500.0,0.00024657,2]
[332126316,1720977041696,-500.0,0.00024657,2]
[332126317,1720977041706,-500.0,0.00024657,2]
[332126318,1720977041716,-500.0,0.00024657,2]
[332126319,1720977041725,-500.0,0.00024657,2]
[332126320,1720977041735,-500.0,0.00024657,2]
[332126321,1720977041743,-500.0,0.00024657,2]
[332126322,1720977041753,-500.0,0.00024657,2]
[332126323,1720977041762,-500.0,0.00024657,2]
[332126324,1720977041772,-811.98,0.00024657,2]
[332126325,1720977041781,-500.0,0.00024657,2]
[332126326,1720977041791,-500.0,0.00024657,2]
[332126327,1720977041800,-500.0,0.00024657,2]
[332126328,1720977041810,-500.0,0.00024657,2]
[332126329,1720977041819,-500.0,0.00024657,2]
[332126330,1720977041830,-500.0,0.00024657,2]
[332126331,1720977041840,-500.0,0.00024657,2]
[332126332,1720977041851,-500.0,0.00024657,2]
[332126333,1720977041860,-590.36,0.00024657,2]
[332126334,1720977041869,-500.0,0.00024657,2]
[332126335,1720977041879,-500.0,0.00024657,2]
[332126336,1720977041893,-501.89397148,0.00024657,2]
[332126337,1720977041902,-150.112233,0.000248,4]
[332126338,1720977041911,-2000.0,0.00024821,2]
[332126339,1720977041921,-500.0,0.0002491,2]
[332126340,1720977041933,-500.0,0.0002491,2]
[332126341,1720977041943,-500.0,0.0002491,2]
[332126342,1720977041956,-500.0,0.0002491,2]
[332126343,1720977041965,-16797.7490443,0.00024921,3]
[332126344,1720977041975,-1407.0,0.00024929,2]
[332126345,1720977041984,-280.29,0.0002493,2]
[332126346,1720977041993,-500.0,0.0002493,2]
[332126347,1720977042004,-563.39,0.0002493,2]
[332126348,1720977042016,-500.0,0.0002493,2]
[332126349,1720977042026,-500.0,0.00024931,2]
[332126350,1720977042035,-500.0,0.00024931,2]
[332126351,1720977042045,-500.0,0.00024931,2]
[332126352,1720977042055,-500.0,0.00024931,2]
[332126353,1720977042065,-500.0,0.00024931,2]
[332126354,1720977042075,-1500.0,0.00024931,2]
[332126355,1720977042084,-542.33,0.00024931,2]
[332126356,1720977042093,-500.0,0.00024931,2]
[332126357,1720977042103,-500.0,0.00024931,2]
[332126358,1720977042112,-500.0,0.00024931,2]
[332126359,1720977042122,-500.0,0.00024931,2]
[332126360,1720977042131,-500.0,0.00024931,2]
[332126361,1720977042141,-500.0,0.00024931,2]
[332126362,1720977042151,-664.35,0.00024931,2]
[332126363,1720977042161,-500.0,0.00024931,2]
[332126364,1720977042171,-228.8614272,0.00024931,2]
[332126365,1720977042180,-559.11657518,0.00024931,2]
[332126366,1720977042190,-500.0,0.00024931,2]
[332126367,1720977042200,-465.54819085,0.00024931,2]
[332126368,1720977042209,-500.0,0.00024931,2]
[332126369,1720977042219,-500.0,0.00024931,2]
[332126370,1720977042228,-500.0,0.00024931,2]
[332126371,1720977042237,-500.0,0.00024931,2]
[332126372,1720977042247,-500.0,0.00024931,2]
[332126373,1720977042256,-500.0,0.00024931,2]
[332126374,1720977042266,-580.42397594,0.00024931,2]
[332126375,1720977042276,-500.0,0.00024931,2]
[332126376,1720977042286,-500.0,0.00024931,2]
[332126377,1720977042296,-500.0,0.00024931,2]
[332126378,1720977042305,-646.42797551,0.00024931,2]
[332126379,1720977042315,-500.0,0.00024931,2]
[332126380,1720977042327,-500.0,0.00024931,2]
[332126381,1720977042338,-500.0,0.00024931,2]
[332126382,1720977042348,-500.0,0.00024931,2]
[332126383,1720977042360,-500.0,0.00024931,2]
[332126384,1720977042372,-500.0,0.00024931,2]
[332126385,1720977042382,-500.0,0.00024931,2]
[332126386,1720977042392,-500.0,0.00024931,2]
[332126387,1720977042401,-500.0,0.00024931,2]
[332126388,1720977042411,-500.0,0.00024931,2]
[332126389,1720977042421,-208.80157291,0.00024931,2]
[332126390,1720977042430,-500.0,0.00024931,2]
[332126391,1720977042440,-500.0,0.00024931,2]
[332126392,1720977042449,-500.0,0.00024931,2]
[332126393,1720977042459,-460.37856671,0.00024931,2]
[332126394,1720977042468,-246.70873886,0.00024931,2]
[332126395,1720977042478,-500.0,0.00024931,2]
[332126396,1720977042488,-500.0,0.00024931,2]
[332126397,1720977042498,-500.0,0.00024931,2]
[332126398,1720977042508,-500.0,0.00024931,2]
[332126399,1720977042517,-500.0,0.00024931,2]
[332126400,1720977042527,-508.41,0.00024931,2]
[332126401,1720977042537,-500.0,0.00024931,2]
[332126402,1720977042547,-523.7,0.00024931,2]
[332126403,1720977042556,-500.0,0.00024931,2]
[332126404,1720977042565,-500.0,0.00024931,2]
[332126405,1720977042575,-500.0,0.00024931,2]
[332126406,1720977042585,-3272.31,0.00024931,2]
[332126407,1720977042594,-859.39,0.00024931,2]
[332126408,1720977042603,-500.0,0.00024931,2]